bitfinex/quotes_SOLUSD_20251130
["timestamp","ask_amount","ask_price","bid_price","bid_amount"]
[1764497357081,0.67,136.81,136.79,3.23616712]
[1764497358965,7.9795804,136.81,136.78,66.03616712]
[1764497359474,0.67,136.8,136.78,62.8]
[1764497362193,0.67,136.8,136.78,66.03616712]
[1764497368000,0.67,136.8,136.78,62.8]
[1764497368312,7.9803167,136.8,136.78,62.8]
[1764497368680,0.7,136.79,136.78,62.8]
[1764497371999,8.01047591,136.79,136.78,62.8]
[1764497374114,8.01047591,136.79,136.77,62.8]
[1764497374280,8.01047591,136.79,136.77,66.03616712]
[1764497375996,7.3101284,136.8,136.78,3.23616712]
[1764497376318,3.92,136.81,136.78,3.23616712]
[1764497376494,11.229584,136.81,136.78,3.23616712]
[1764497376682,11.229584,136.81,136.79,3.23616712]
[1764497377992,11.229584,136.81,136.78,3.23616712]
[1764497378193,11.229584,136.81,136.78,3.30616712]
[1764497378620,8.00868922,136.83,136.8,3.23616712]
[1764497378911,0.7,136.83,136.82,3.23616712]
[1764497379215,0.7,136.83,136.81,3.23616712]
[1764497380526,8.00788254,136.84,136.81,3.23616712]
[1764497381307,0.7,136.83,136.81,3.23616712]
[1764497386440,0.7,136.83,136.8,3.22]
[1764497386602,0.7,136.83,136.81,3.23616712]
[1764497388527,0.7,136.83,136.8,10.52956735]
[1764497388707,0.7,136.83,136.81,3.23616712]
[1764497389025,0.7,136.83,136.81,62.8]
[1764497390126,0.7,136.83,136.81,66.03616712]
[1764497390310,8.00839079,136.83,136.81,66.03616712]
[1764497391132,0.7,136.82,136.81,66.03616712]
[1764497392434,8.00887297,136.82,136.81,62.8]
[1764497394747,8.00887297,136.82,136.8,66.03616712]
[1764497395747,0.66,136.81,136.8,66.03616712]
[1764497396618,0.66,136.81,136.8,64.87003007]
[1764497397840,7.96889926,136.82,136.8,64.87003007]
[1764497398242,7.96889926,136.82,136.8,62.8]
[1764497398636,7.96889926,136.82,136.8,64.87003007]
[1764497398945,0.66,136.81,136.8,64.87003007]
[1764497399834,0.66,136.81,136.8,62.8]
[1764497400642,0.66,136.81,136.79,64.87003007]
[1764497407950,0.66,136.81,136.79,62.8]
[1764497408128,0.66,136.81,136.79,64.87003007]
[1764497411050,0.66,136.81,136.8,2.07003007]
[1764497415954,0.66,136.81,136.79,64.87003007]
[1764497428375,7.96964632,136.81,136.77,72.18148275]
[1764497428669,7.96964632,136.81,136.78,2.07003007]
[1764497428872,0.67,136.8,136.78,2.07003007]
[1764497431773,0.67,136.8,136.79,2.07003007]
[1764497432377,16.11561411,136.88,136.79,75.47050598]
[1764497432563,0.67,136.84,136.82,2.07003007]
[1764497432761,0.67,136.84,136.82,64.87003007]
[1764497433275,0.67,136.84,136.82,62.8]
[1764497436274,7.97801692,136.84,136.82,62.8]
[1764497436447,7.97801692,136.84,136.8,21.96273655]
[1764497436448,13.26804699,136.84,136.8,62.8]
[1764497436648,0.67,136.83,136.79,62.8]
[1764497436872,22.63273655,136.83,136.79,62.8]
[1764497437070,24.70276662,136.83,136.79,62.8]
[1764497437271,0.67,136.82,136.77,12.60148734]
[1764497437485,22.63916993,136.82,136.77,7.31145727]
[1764497437850,2.07003007,136.83,136.77,7.31145727]
[1764497437851,0.67,136.81,136.77,7.31145727]
[1764497438163,29.94875396,136.81,136.77,7.31145727]
[1764497438485,29.94875396,136.81,136.77,9.38148734]
[1764497438783,0.67,136.8,136.77,9.38148734]
[1764497440887,0.67,136.8,136.78,2.07003007]
[1764497442997,21.96916993,136.81,136.78,9.38095452]
[1764497443161,0.67,136.82,136.8,2.07003007]
[1764497443350,22.63595277,136.82,136.8,2.07003007]
[1764497445191,0.67,136.81,136.79,10.53041595]
[1764497445377,7.9794072,136.81,136.78,66.02]
[1764497445558,7.9794072,136.81,136.78,68.09003007]
[1764497445758,0.67,136.8,136.78,68.09003007]
[1764497448090,29.94535997,136.81,136.79,2.07003007]
[1764497448290,0.67,136.8,136.78,3.22]
[1764497448467,0.67,136.8,136.78,5.29003007]
[1764497449089,0.67,136.8,136.79,2.07003007]
[1764497449789,7.98148297,136.8,136.79,2.07003007]
[1764497450078,0.67,136.8,136.79,2.07003007]
[1764497450795,0.67,136.8,136.77,10.60148297]
[1764497450982,0.67,136.8,136.78,2.07003007]
[1764497454193,0.67,136.8,136.78,64.87003007]
[1764497458611,0.67,136.8,136.78,66.0350324]
[1764497460009,0.67,136.8,136.78,73.34585818]
[1764497462314,0.72,136.82,136.8,66.0350324]
[1764497462685,26.29990701,136.83,136.81,3.2350324]
[1764497464178,0.72,136.83,136.81,3.2350324]
[1764497464387,0.72,136.83,136.82,3.2350324]
[1764497468911,0.72,136.83,136.81,3.2350324]
[1764497471913,0.72,136.83,136.81,66.0350324]
[1764497476024,8.0283929,136.83,136.81,66.0350324]
[1764497477317,7.3083929,136.83,136.81,66.0350324]
[1764497477535,0.72,136.82,136.81,62.8]
[1764497477988,0.72,136.82,136.79,69.2550324]
[1764497478809,0.72,136.82,136.79,66.0350324]
[1764497479313,22.68756123,136.82,136.79,66.0350324]
[1764497479511,29.99690771,136.82,136.79,66.0350324]
[1764497479705,0.72,136.81,136.79,66.0350324]
[1764497481015,0.72,136.81,136.79,62.8]
[1764497483923,0.72,136.81,136.78,13.76602708]
[1764497484437,0.72,136.81,136.79,3.2350324]
[1764497487025,0.72,136.81,136.76,18.35002859]
[1764497487026,8.0298118,136.81,136.77,3.2350324]
[1764497487397,0.71,136.8,136.77,3.2350324]
[1764497488115,8.02028968,136.8,136.76,13.76670953]
[1764497488425,8.02028968,136.8,136.76,10.53167713]
[1764497488597,8.02028968,136.8,136.76,13.76670953]
[1764497488598,0.71,136.79,136.76,13.76670953]
[1764497490198,0.71,136.79,136.76,6.4550324]
[1764497490912,8.02074942,136.79,136.76,6.4550324]
[1764497491416,0.71,136.78,136.76,6.4550324]
[1764497492740,0.71,136.78,136.74,63.07]
[1764497492899,0.71,136.78,136.76,3.2350324]
[1764497492900,8.02130991,136.78,136.76,3.2350324]
[1764497494031,7.31130991,136.78,136.75,62.8]
[1764497494235,0.71,136.77,136.76,3.2350324]
[1764497495111,8.02130991,136.78,136.76,3.2350324]
[1764497496221,8.02130991,136.78,136.77,3.2350324]
[1764497496645,7.31037821,136.8,136.77,3.3050324]
[1764497496845,7.31037821,136.8,136.78,3.2350324]
[1764497497045,8.0194244,136.81,136.79,3.2350324]
[1764497497227,8.0194244,136.81,136.79,66.0350324]
[1764497497422,0.71,136.81,136.79,62.8]
[1764497497617,8.01888234,136.82,136.8,3.2350324]
[1764497498233,0.71,136.81,136.8,3.2350324]
[1764497500847,0.71,136.81,136.79,62.8]
[1764497501050,0.71,136.81,136.79,66.0350324]
[1764497501425,0.71,136.81,136.8,3.2350324]
[1764497501624,0.71,136.81,136.8,66.0350324]
[1764497507348,0.71,136.83,136.8,66.0350324]
[1764497508450,7.30887297,136.82,136.8,66.0350324]
[1764497508630,8.01839747,136.83,136.81,3.2350324]
[1764497510650,0.71,136.83,136.81,3.2350324]
[1764497513560,0.71,136.83,136.81,66.0350324]
[1764497518848,8.0183668,136.83,136.81,66.0350324]
[1764497519346,0.66,136.82,136.81,66.0350324]
[1764497520570,0.66,136.82,136.81,64.86977777]
[1764497520776,0.66,136.82,136.81,62.8]
[1764497523752,0.66,136.82,136.81,64.86977777]
[1764497523956,0.66,136.83,136.81,64.86977777]
[1764497524253,0.66,136.82,136.81,64.86977777]
[1764497526671,19.528864,136.85,136.81,64.86977777]
[1764497526856,7.96780473,136.84,136.82,2.06977777]
[1764497527461,0.66,136.83,136.82,2.06977777]
[1764497528083,7.96780473,136.84,136.82,2.06977777]
[1764497530090,0.66,136.84,136.82,2.06977777]
[1764497530679,0.66,136.83,136.82,2.06977777]
[1764497531584,0.66,136.83,136.82,64.86977777]
[1764497533285,0.66,136.86,136.82,75.46854015]
[1764497533500,2.06977777,136.9,136.84,2.06977777]
[1764497533501,0.66,136.85,136.84,2.06977777]
[1764497534007,0.66,136.85,136.83,2.06977777]
[1764497537313,0.66,136.85,136.84,2.06977777]
[1764497540984,0.66,136.85,136.83,2.06977777]
[1764497542808,0.66,136.85,136.82,64.86977777]
[1764497543008,7.96772045,136.85,136.82,62.8]
[1764497543212,9.37636387,136.84,136.81,64.86977777]
[1764497543409,10.03636387,136.84,136.81,64.86977777]
[1764497543581,0.66,136.83,136.81,64.86977777]
[1764497543781,0.66,136.83,136.81,62.8]
[1764497551008,0.66,136.83,136.81,64.86977777]
[1764497551309,0.66,136.83,136.81,62.8]
[1764497554208,0.66,136.83,136.81,64.86977777]
[1764497563021,23.12462006,136.85,136.81,64.86977777]
[1764497563207,0.66,136.84,136.82,2.06977777]
[1764497566829,10.52759624,136.85,136.82,2.06977777]
[1764497567158,0.66,136.84,136.82,64.86977777]
[1764497567901,7.30759624,136.85,136.82,64.86977777]
[1764497568106,7.96759624,136.85,136.82,64.86977777]
[1764497568308,7.96759624,136.85,136.83,2.06977777]
[1764497568726,0.66,136.84,136.83,2.06977777]
[1764497568924,0.66,136.84,136.82,64.86977777]
[1764497569936,0.66,136.84,136.83,2.06977777]
[1764497571440,0.66,136.84,136.82,64.86977777]
[1764497573039,0.66,136.84,136.82,2.06977777]
[1764497575836,7.96782769,136.84,136.81,2.06977777]
[1764497576242,0.72,136.83,136.81,2.06977777]
[1764497578745,0.72,136.83,136.82,2.06977777]
[1764497578946,0.72,136.83,136.82,64.86977777]
[1764497580647,0.72,136.83,136.82,62.8]
[1764497581848,0.72,136.83,136.82,66.03348498]
[1764497587726,0.72,136.83,136.82,62.8]
[1764497588035,0.72,136.83,136.82,66.03348498]
[1764497591153,0.72,136.83,136.82,62.8]
[1764497595230,0.72,136.83,136.82,66.03348498]
[1764497610562,0.72,136.83,136.82,62.8]
[1764497612264,0.7,136.84,136.82,66.03348498]
[1764497618056,15.31499088,136.85,136.82,66.03348498]
[1764497618247,8.00749544,136.85,136.83,3.23348498]
[1764497618450,0.7,136.85,136.83,3.23348498]
[1764497620364,0.7,136.85,136.83,66.03348498]
[1764497626495,0.7,136.85,136.83,3.23348498]
[1764497627204,8.00727258,136.85,136.83,3.23348498]
[1764497627508,8.00727258,136.85,136.82,3.23348498]
[1764497627723,0.7,136.84,136.81,3.22]
[1764497628015,0.7,136.84,136.8,3.23348498]
[1764497629318,22.66434454,136.84,136.8,3.23348498]
[1764497630614,7.30833881,136.83,136.8,3.23348498]
[1764497630813,8.00833881,136.83,136.81,3.23348498]
[1764497631110,0.7,136.82,136.81,3.23348498]
[1764497632314,0.7,136.82,136.81,66.03348498]
[1764497642534,0.7,136.82,136.81,64.86965191]
[1764497643225,0.7,136.82,136.81,62.8]
[1764497644235,0.7,136.82,136.8,64.86965191]
[1764497644939,8.00899172,136.82,136.79,64.86965191]
[1764497645309,0.67,136.81,136.79,64.86965191]
[1764497647230,0.67,136.81,136.8,2.06965191]
[1764497651635,0.67,136.81,136.79,64.86965191]
[1764497655432,0.67,136.82,136.8,2.06965191]
[1764497656146,0.67,136.82,136.8,64.86965191]
[1764497658025,0.67,136.83,136.81,2.06965191]
[1764497658224,10.52800257,136.84,136.81,2.06965191]
[1764497658225,0.67,136.82,136.81,2.06965191]
[1764497662037,0.67,136.82,136.81,64.86965191]
[1764497664447,0.67,136.82,136.81,62.8]
[1764497664654,0.67,136.82,136.81,64.86965191]
[1764497668762,0.67,136.82,136.81,62.8]
[1764497670356,7.97887297,136.82,136.81,62.8]
[1764497673565,0.67,136.82,136.81,62.8]
[1764497673865,0.67,136.82,136.8,64.86965191]
[1764497674363,0.67,136.82,136.8,72.17954774]
[1764497674573,10.527943,136.84,136.81,2.06965191]
[1764497674752,0.67,136.83,136.81,64.86965191]
[1764497676964,27.07696267,136.86,136.82,2.13965191]
[1764497676965,0.67,136.86,136.82,2.13965191]
[1764497677149,7.30671467,136.87,136.83,5.28965191]
[1764497677356,0.67,136.85,136.83,68.08965191]
[1764497677757,0.67,136.85,136.83,73.32831152]
[1764497677958,0.67,136.85,136.83,75.39796343]
[1764497680146,0.67,136.85,136.83,73.32831152]
[1764497680551,0.67,136.86,136.83,75.46796343]
[1764497680764,0.67,136.86,136.83,75.39796343]
[1764497682856,0.67,136.86,136.83,12.59796343]
[1764497684172,0.67,136.86,136.83,10.52831152]
[1764497686181,0.67,136.86,136.84,2.06965191]
[1764497688683,0.67,136.86,136.84,64.86965191]
[1764497688984,7.30671467,136.87,136.85,2.06965191]
[1764497688985,7.97671467,136.87,136.85,2.06965191]
[1764497689562,7.30671467,136.87,136.85,2.06965191]
[1764497689861,11.26391997,136.91,136.84,7.30779691]
[1764497689862,7.30488474,136.9,136.86,2.06965191]
[1764497690452,0.67,136.89,136.85,5.28965191]
[1764497690656,0.67,136.89,136.85,2.06965191]
[1764497690852,7.97543365,136.89,136.85,2.06965191]
[1764497691283,0.67,136.88,136.85,2.06965191]
[1764497692383,0.67,136.88,136.84,7.30779691]
[1764497692584,0.67,136.88,136.85,2.06965191]
[1764497692985,7.9760055,136.88,136.84,12.59744882]
[1764497693180,7.9760055,136.88,136.83,7.30829993]
[1764497693379,0.67,136.87,136.84,2.06965191]
[1764497695682,7.9765754,136.87,136.84,2.06965191]
[1764497695884,0.68,136.86,136.84,2.06965191]
[1764497697575,0.68,136.86,136.84,64.86965191]
[1764497699791,7.98676814,136.86,136.84,64.86965191]
[1764497700387,0.68,136.85,136.84,64.86965191]
[1764497700688,0.68,136.85,136.84,62.8]
[1764497702591,7.30676814,136.86,136.84,62.8]
[1764497702769,0.68,136.85,136.84,62.8]
[1764497703592,0.68,136.85,136.83,66.03290835]
[1764497707496,0.68,136.85,136.83,62.8]
[1764497709187,0.68,136.88,136.84,3.30290835]
[1764497709491,0.68,136.87,136.84,69.32290835]
[1764497709707,3.22,136.89,136.86,3.23290835]
[1764497709911,0.68,136.89,136.87,3.23290835]
[1764497710074,0.68,136.89,136.87,62.8]
[1764497712606,7.98518861,136.89,136.87,62.8]
[1764497713098,0.68,136.88,136.87,62.8]
[1764497715408,7.98581359,136.88,136.85,66.02]
[1764497715708,11.21872194,136.88,136.85,62.8]
[1764497715888,0.68,136.87,136.85,62.8]
[1764497717609,7.30673681,136.86,136.85,62.8]
[1764497717897,0.68,136.87,136.85,3.23290835]
[1764497718109,0.68,136.87,136.86,3.23290835]
[1764497718591,0.68,136.87,136.85,3.23290835]
[1764497719190,7.98643045,136.87,136.84,3.23290835]
[1764497720285,7.30643045,136.87,136.84,3.23290835]
[1764497720507,0.68,136.86,136.84,3.23290835]
[1764497721414,0.68,136.86,136.84,66.03290835]
[1764497725516,7.98686247,136.86,136.84,62.8]
[1764497726023,0.7,136.85,136.84,62.8]
[1764497727423,0.7,136.85,136.83,6.45290835]
[1764497730611,0.7,136.85,136.84,3.23290835]
[1764497732720,0.7,136.85,136.83,3.22]
[1764497733218,8.00753006,136.85,136.83,62.8]
[1764497733596,0.7,136.84,136.83,62.8]
[1764497739230,0.7,136.83,136.81,69.25290835]
[1764497740513,8.00870097,136.83,136.79,3.23290835]
[1764497741019,0.7,136.82,136.79,3.23290835]
[1764497742441,8.00921976,136.82,136.79,3.23290835]
[1764497743723,0.7,136.81,136.79,3.23290835]
[1764497745737,8.00942702,136.81,136.78,13.76349301]
[1764497746124,0.7,136.8,136.78,13.76349301]
[1764497746324,0.7,136.8,136.78,6.45290835]
[1764497747043,0.7,136.8,136.78,3.22]
[1764497747947,8.00994327,136.8,136.76,62.8]
[1764497748140,8.00994327,136.8,136.76,73.33190663]
[1764497748451,8.00994327,136.8,136.77,3.30290835]
[1764497749132,8.00994327,136.8,136.77,3.23290835]
[1764497750153,7.3094072,136.81,136.77,3.23290835]
[1764497750554,8.0094072,136.81,136.77,3.23290835]
[1764497750754,7.3094072,136.81,136.76,73.40190663]
[1764497750956,0.7,136.8,136.77,3.23290835]
[1764497751156,0.7,136.8,136.77,66.03290835]
[1764497752241,0.7,136.8,136.77,66.10290835]
[1764497752552,0.7,136.8,136.77,62.8]
[1764497752735,0.7,136.8,136.77,66.03290835]
[1764497754758,0.7,136.8,136.78,3.23290835]
[1764497755456,0.7,136.8,136.77,73.41397515]
[1764497755952,0.7,136.8,136.77,70.1810668]
[1764497756152,0.7,136.8,136.77,73.41397515]
[1764497756353,0.7,136.8,136.78,3.22]
[1764497756977,0.7,136.8,136.78,66.02]
[1764497761570,8.00943059,136.81,136.78,69.32290835]
[1764497761758,8.00943059,136.81,136.78,69.25290835]
[1764497761956,7.30887297,136.82,136.78,69.25290835]
[1764497762170,0.7,136.8,136.78,69.25290835]
[1764497762874,0.7,136.81,136.78,76.63389895]
[1764497763180,0.7,136.81,136.79,3.23290835]
[1764497763350,0.7,136.81,136.79,66.03290835]
[1764497764657,0.7,136.81,136.79,64.87012606]
[1764497764874,0.7,136.81,136.79,62.8]
[1764497768081,8.00887297,136.82,136.79,62.8]
[1764497768257,8.00887297,136.82,136.8,2.07012606]
[1764497768888,8.00887297,136.82,136.8,64.87012606]
[1764497769251,8.00814387,136.84,136.81,2.07012606]
[1764497769470,0.7,136.83,136.82,2.07012606]
[1764497770082,0.7,136.83,136.81,64.87012606]
[1764497771274,0.7,136.83,136.82,2.07012606]
[1764497772493,0.7,136.83,136.81,64.87012606]
[1764497772804,8.00847945,136.83,136.81,62.8]
[1764497773173,0.7,136.82,136.81,62.8]
[1764497774763,0.7,136.82,136.8,64.87012606]
[1764497776588,7.30847945,136.83,136.81,2.07012606]
[1764497776589,0.68,136.83,136.81,2.07012606]
[1764497776893,0.68,136.82,136.81,2.07012606]
[1764497780377,0.68,136.83,136.81,2.07012606]
[1764497780574,0.68,136.83,136.82,2.07012606]
[1764497780789,0.68,136.83,136.8,7.37993326]
[1764497780987,3.22,136.84,136.8,7.37993326]
[1764497781210,0.68,136.84,136.83,2.07012606]
[1764497781694,7.30743982,136.85,136.83,2.07012606]
[1764497781695,7.98743982,136.85,136.83,2.07012606]
[1764497781993,7.3068955,136.86,136.84,2.07012606]
[1764497782692,0.68,136.85,136.84,2.07012606]
[1764497782907,0.68,136.85,136.83,64.87012606]
[1764497785608,0.68,136.85,136.84,2.07012606]
[1764497789608,0.68,136.85,136.83,64.87012606]
[1764497790522,7.98751153,136.85,136.83,64.87012606]
[1764497791015,0.71,136.84,136.83,64.87012606]
[1764497791188,0.71,136.84,136.83,62.8]
[1764497791714,8.01780473,136.84,136.83,62.8]
[1764497792212,29.50731656,136.84,136.8,2.07012606]
[1764497792516,0.71,136.83,136.8,2.07012606]
[1764497793417,7.30887297,136.82,136.8,2.07012606]
[1764497794017,0.71,136.81,136.8,2.07012606]
[1764497798618,0.71,136.81,136.8,64.87012606]
[1764497809145,0.71,136.81,136.8,2.07012606]
[1764497809349,8.0194072,136.81,136.77,2.07012606]
[1764497809841,0.71,136.8,136.77,2.07012606]
[1764497810320,0.71,136.8,136.78,2.07012606]
[1764497810522,10.5294072,136.81,136.79,2.07012606]
[1764497810837,10.5294072,136.81,136.76,0.07]
[1764497810838,0.71,136.8,136.76,0.07]
[1764497811924,8.01995187,136.8,136.79,2.07012606]
[1764497812327,8.01995187,136.8,136.78,2.07012606]
[1764497812528,0.71,136.79,136.78,2.07012606]
[1764497814842,3.22,136.81,136.78,2.14012606]
[1764497815056,3.22,136.81,136.8,2.07012606]
[1764497815057,3.93,136.81,136.8,2.07012606]
[1764497815839,0.71,136.81,136.8,2.07012606]
[1764497820759,7.30888007,136.82,136.8,2.07012606]
[1764497820970,7.98888007,136.82,136.8,2.07012606]
[1764497821269,0.68,136.81,136.8,2.07012606]
[1764497824573,0.68,136.81,136.8,3.23443451]
[1764497827570,7.30888007,136.82,136.8,3.23443451]
[1764497827772,7.30888007,136.82,136.81,3.23443451]
[1764497828553,0.68,136.82,136.81,3.23443451]
[1764497829382,0.68,136.82,136.8,3.23443451]
[1764497830650,0.68,136.82,136.81,3.23443451]
[1764497833150,0.68,136.83,136.81,3.23443451]
[1764497834984,7.98838693,136.83,136.81,3.23443451]
[1764497835284,0.68,136.83,136.81,3.23443451]
[1764497835576,0.68,136.83,136.81,10.5437967]
[1764497835953,0.68,136.83,136.81,3.23443451]
[1764497837181,0.68,136.83,136.81,66.03443451]
[1764497842082,7.98847921,136.83,136.81,62.8]
[1764497842474,0.68,136.82,136.81,62.8]
[1764497843163,0.68,136.82,136.8,66.03443451]
[1764497847387,0.68,136.82,136.81,3.23443451]
[1764497847695,7.96847921,136.83,136.81,3.23443451]
[1764497848069,7.30847921,136.83,136.81,3.23443451]
[1764497848269,7.96847921,136.83,136.82,3.23443451]
[1764497849269,7.30847921,136.83,136.82,3.23443451]
[1764497849893,7.96847921,136.83,136.82,3.23443451]
[1764497850603,0.66,136.83,136.82,3.23443451]
[1764497850804,10.52796788,136.84,136.82,3.23443451]
[1764497850805,7.96796788,136.84,136.82,3.23443451]
[1764497851089,10.52686669,136.86,136.83,3.23443451]
[1764497851301,10.52686669,136.86,136.82,7.37883817]
[1764497851302,0.66,136.85,136.84,3.23443451]
[1764497863100,11.18686669,136.86,136.84,3.23443451]
[1764497863298,10.52686669,136.86,136.84,3.23443451]
[1764497863484,0.66,136.85,136.84,3.23443451]
[1764497865297,3.22,136.86,136.84,3.23443451]
[1764497865509,0.66,136.89,136.85,3.30443451]
[1764497865690,0.66,136.89,136.88,3.23443451]
[1764497866999,0.66,136.89,136.87,3.23443451]
[1764497867407,7.96532642,136.89,136.85,7.30720134]
[1764497867606,7.96532642,136.89,136.86,3.23443451]
[1764497867812,0.66,136.88,136.86,3.23443451]
[1764497867989,0.66,136.88,136.87,3.23443451]
[1764497869287,0.66,136.89,136.87,3.23443451]
[1764497869494,0.66,136.89,136.88,3.23443451]
[1764497871305,0.66,136.89,136.87,3.23443451]
[1764497871692,0.66,136.89,136.88,3.23443451]
[1764497879517,7.96513551,136.89,136.88,3.23443451]
[1764497883521,3.92,136.9,136.88,3.23443451]
[1764497883727,3.22,136.9,136.88,66.03443451]
[1764497884018,3.22,136.9,136.89,3.23443451]
[1764497884917,3.92,136.9,136.89,3.23443451]
[1764497885123,3.92,136.9,136.88,62.8]
[1764497885328,3.92,136.9,136.85,66.03443451]
[1764497885329,8.00513551,136.89,136.85,66.03443451]
[1764497885823,0.7,136.88,136.85,66.03443451]
[1764497886525,0.7,136.88,136.85,64.86843508]
[1764497886721,8.00575652,136.88,136.85,64.86843508]
[1764497887024,0.7,136.87,136.85,64.86843508]
[1764497891239,8.0063223,136.87,136.83,2.06843508]
[1764497891427,11.2063223,136.87,136.83,2.06843508]
[1764497891623,0.7,136.86,136.83,2.06843508]
[1764497892028,7.30727073,136.85,136.83,2.06843508]
[1764497892522,8.00727073,136.85,136.83,2.06843508]
[1764497893141,0.7,136.85,136.84,2.06843508]
[1764497893757,7.30695148,136.86,136.84,2.06843508]
[1764497893758,8.00695148,136.86,136.84,2.06843508]
[1764497894033,8.00695148,136.86,136.85,2.06843508]
[1764497894740,0.7,136.88,136.85,2.06843508]
[1764497895035,0.7,136.87,136.86,2.06843508]
[1764497895237,25.17791399,136.9,136.86,2.06843508]
[1764497895238,0.7,136.88,136.86,2.06843508]
[1764497895422,0.7,136.89,136.87,2.06843508]
[1764497895627,0.7,136.89,136.88,2.06843508]
[1764497896636,0.7,136.9,136.88,2.06843508]
[1764497896837,0.7,136.9,136.89,2.06843508]
[1764497902756,7.40428111,136.91,136.89,64.86843508]
[1764497902757,8.08428111,136.91,136.89,64.86843508]
[1764497902957,8.08428111,136.91,136.9,2.06843508]
[1764497903457,7.40428111,136.91,136.9,2.06843508]
[1764497904356,8.08428111,136.91,136.9,2.06843508]
[1764497905742,0.1,136.91,136.9,2.06843508]
[1764497907563,0.1,136.91,136.9,12.66303697]
[1764497907760,0.1,136.91,136.9,28.97190097]
[1764497911470,0.1,136.91,136.9,91.77190097]
[1764497912874,0.1,136.91,136.9,91.70190097]
[1764497913755,0.1,136.91,136.9,89.63346589]
[1764497913966,0.1,136.91,136.9,91.70190097]
[1764497914575,0.1,136.91,136.9,88.48190097]
[1764497914765,0.1,136.91,136.9,91.68190097]
[1764497918675,0.1,136.91,136.9,64.86843508]
[1764497918875,0.82,136.91,136.9,62.8]
[1764497923379,0.82,136.91,136.89,2.06843508]
[1764497926018,0.82,136.91,136.88,9.37396509]
[1764497927211,0.82,136.91,136.88,72.17396509]
[1764497932736,8.12411906,136.91,136.88,64.86843508]
[1764497932942,8.12411906,136.91,136.88,68.06843508]
[1764497933119,0.72,136.9,136.88,68.06843508]
[1764497936344,0.72,136.9,136.88,75.37409385]
[1764497936962,0.67,136.9,136.88,75.37409385]
[1764497937334,0.67,136.9,136.89,2.06843508]
[1764497937961,0.67,136.9,136.88,75.37409385]
[1764497941374,0.77,136.91,136.89,9.37357059]
[1764497944176,0.77,136.91,136.89,72.17357059]
[1764497946264,0.1,136.91,136.89,72.17357059]
[1764497946464,0.1,136.91,136.9,5.33843508]
[1764497947290,0.1,136.91,136.9,12.64303697]
[1764497948291,0.1,136.91,136.9,12.92736011]
[1764497948690,0.1,136.91,136.9,14.08662012]
[1764497949995,0.1,136.91,136.9,76.88662012]
[1764497957108,0.1,136.91,136.9,76.81662012]
[1764497957316,0.1,136.91,136.9,76.88662012]
[1764497962014,0.77,136.94,136.91,62.98432314]
[1764497962317,0.77,136.94,136.93,3.22769509]
[1764497963204,0.77,136.94,136.93,10.53069662]
[1764497967536,0.77,136.94,136.93,10.50300153]
[1764497967837,0.77,136.94,136.93,73.20300153]
[1764497969525,0.77,136.94,136.93,76.43069662]
[1764497971929,0.81,136.94,136.93,76.43069662]
[1764497974335,0.1,136.94,136.93,76.43069662]
[1764497976124,0.81,136.94,136.93,76.43069662]
[1764497982149,0.1,136.94,136.93,76.43069662]
[1764497983747,0.81,136.94,136.93,76.43069662]
[1764497988449,0.1,136.94,136.93,76.43069662]
[1764497988832,0.81,136.94,136.93,76.43069662]
[1764497989853,0.1,136.94,136.93,76.43069662]
[1764497991966,0.1,136.94,136.93,76.50069662]
[1764497992334,0.1,136.94,136.93,76.78501976]
[1764497992637,0.1,136.94,136.93,79.71017241]
[1764497993839,0.1,136.94,136.93,79.64017241]
[1764497994034,0.1,136.94,136.93,76.71501976]
[1764497997964,0.1,136.95,136.94,62.88432314]
[1764497998159,0.1,136.95,136.94,66.11201823]